[Event "MCCT Oslo Esports Cup 2022"]
[Site "Oslo"]
[Date "2022.04.20"]
[Round "7.5"]
[White "Van Foreest, Jorden"]
[Black "Le, Quang Liem"]
[Result "1/2-1/2"]
[ECO "C77"]
[WhiteElo "2714"]
[BlackElo "2709"]
[Annotator "TA"]
[PlyCount "124"]
[EventDate "2022.04.14"]
[EventType "tourn"]
[EventCountry "NOR"]
[SourceTitle "playchess.com"]
[Source "ChessBase"]
[SourceQuality "1"]
[TimeControl "300+3"]

{[%evp 10,124,29,2,31,4,10,12,21,18,34,0,0,0,0,0,3,9,14,0,0,4,14,0,0,0,-14,-4,-1,0,0,0,-2,-21,-21,-22,-22,-31,-14,-18,-3,-2,0,0,0,0,0,0,0,0,0,-4,-4,-8,0,0,0,0,0,0,0,0,0,0,0,0,-1,-2,-2,-2,-2,-2,-2,-8,-8,-10,-10,-22,0,0,0,-39,-13,-20,-8,-11,-11,-16,-15,-20,-8,-9,0,0,0,0,0,0,0,-8,-8,-8,-8,-8,0,0,0,-8,-8,-8,-8,-8,-8,-8,-8,-8,-8]} 1. e4 {[%emt 0:00:00]} e5 {[%emt 0:00:00]} 2. Nf3 {[%emt 0:00:01]} Nc6 {[%emt 0:00:01]} 3. Bb5 {[%emt 0:00:01]} a6 {[%emt 0:00:01]} 4. Ba4 {[%emt 0:00:00]} Nf6 {[%emt 0:00:01]} 5. d3 {[%emt 0:00:01][%cal Bd2d3,Bd3d4][%mdl 32]} Bc5 {[%emt 0:00:03]} 6. c3 {[%emt 0:00:01]} (6. Bxc6 $5 dxc6 7. O-O $11) 6... O-O {[%emt 0:00:12] C77: Ruy Lopez: 3...a6 4 Ba4 Nf6, unusual lines.} 7. Nbd2 {[%emt 0:00:09]} d6 {[%emt 0:00:06]} 8. O-O {[%emt 0:00:03]} Ba7 {[%emt 0:00:09]} (8... b5 $5 {[%cal Rb5a4]} 9. Bc2 a5 $11) 9. h3 {[%emt 0:00:10]} Ne7 {[%emt 0:00:04]} 10. d4 {[%emt 0:00:12]} Ng6 {[%emt 0:00:02]} 11. Re1 {[%emt 0:00:06]} b5 {[%emt 0:00:08]} 12. Bc2 {[%emt 0:00:02]} c5 {[%emt 0:00:00]} 13. a4 {[%emt 0:00:09]} Bd7 {[%emt 0:00:05]} 14. Nf1 {[%emt 0:00:33]} cxd4 {[%emt 0:00:14]} 15. cxd4 {[%emt 0:00:01]} exd4 {[%emt 0:00:00]} 16. Nxd4 {[%emt 0:00:03]} Re8 {[%emt 0:00:01] [#]} 17. Ng3 $146 {[%emt 0:00:08]} ({Predecessor:} 17. Nf5 d5 18. Be3 dxe4 19. Nd6 Re5 20. Bxa7 Rxa7 21. Nxe4 Qe7 22. Nxf6+ Qxf6 23. Rxe5 Qxe5 24. axb5 {½-½ (24) Firnhaber,I (2399)-Cvak,R (2298) LSS email 2017}) 17... d5 {[%emt 0:00:05]} 18. axb5 {[%emt 0:00:03]} axb5 {[%emt 0:00:03]} 19. Be3 {[%emt 0:01:31]} dxe4 {[%emt 0:00:03]} 20. Rxa7 {[%emt 0:00:36]} Rxa7 {[%emt 0:00:02]} 21. Nc6 {[%emt 0:00:00] [#]} Bxc6 {[%emt 0:00:03]} 22. Qxd8 {[%emt 0:00:01]} Rxd8 {[%emt 0:00:00]} 23. Bxa7 {[%emt 0:00:01]} Nf4 {[%emt 0:00:27][%cal Oe4e3]} 24. Bb6 {[%emt 0:00:15]} ({Much weaker is} 24. Nxe4 Nxe4 25. Bxe4 Re8 $17) 24... Re8 {[%emt 0:00:20]} 25. Bd4 {[%emt 0:00:07]} Nd3 {[%emt 0:00:14]} 26. Re3 {[%emt 0:00:10]} Nd5 {[%emt 0:00:15] Pair of Knights!} 27. Rxe4 {[%emt 0:00:17]} Rxe4 {[%emt 0:00:01]} 28. Nxe4 {[%emt 0:00:00]} N5b4 {[%emt 0:00:01]} 29. Bxd3 {[%emt 0:00:04]} Nxd3 $11 {[%emt 0:00:00][%mdl 4096] Endgame KBN-KBN} 30. Nd6 {[%emt 0:00:05]} Nf4 {[%emt 0:00:18] Threatens to win with ...Ne2+.} 31. Be5 {[%emt 0:00:18]} Nd3 {[%emt 0:00:28]} 32. Bd4 {[%emt 0:00:03]} f6 {[%emt 0:00:05]} 33. f3 {[%emt 0:00:03]} Kf8 {[%emt 0:00:02]} 34. Kf1 {[%emt 0:00:03]} Ke7 {[%emt 0:00:12]} 35. Nf5+ {[%emt 0:00:01]} Kf7 {[%emt 0:00:01]} 36. Ke2 {[%emt 0:00:01]} Nf4+ {[%emt 0:00:01]} 37. Kf2 {[%emt 0:00:01]} Bd7 {[%emt 0:00:03]} 38. Ng3 {[%emt 0:00:18]} Ke6 {[%emt 0:00:05]} 39. Ne2 {[%emt 0:00:01] [#]} Kd5 $1 {[%emt 0:00:20] White must now prevent ...Nxe2.} 40. Bc3 {[%emt 0:00:05]} Ne6 {[%emt 0:00:16]} 41. Ke3 {[%emt 0:00:02]} Kc4 {[%emt 0:00:02]} 42. Nf4 {[%emt 0:00:05]} b4 {[%emt 0:00:06]} 43. Bd2 {[%emt 0:00:01]} Nc5 {[%emt 0:00:06]} 44. Nh5 {[%emt 0:00:05]} Ne6 {[%emt 0:00:09]} 45. Nf4 {[%emt 0:00:02]} Nc7 {[%emt 0:00:06]} 46. g4 {[%emt 0:00:06] The position is equal.} g5 {[%emt 0:00:09]} 47. Nd3 {[%emt 0:00:05]} Nd5+ {[%emt 0:00:01]} 48. Ke2 {[%emt 0:00:01]} Bb5 {[%emt 0:00:13]} 49. Nc1 {[%emt 0:00:06]} Kd4+ {[%emt 0:00:15]} 50. Kf2 {[%emt 0:00:01]} Bc4 {[%emt 0:00:01]} 51. Kg3 {[%emt 0:00:01]} h6 {[%emt 0:00:08]} 52. h4 {[%emt 0:00:02]} b3 {[%emt 0:00:34]} 53. hxg5 {[%emt 0:00:00]} hxg5 {[%emt 0:00:04]} 54. f4 {[%emt 0:00:01]} gxf4+ {[%emt 0:00:11]} 55. Bxf4 {[%emt 0:00:00]} Ne3 {[%emt 0:00:13]} (55... Ke4 $5 {[%cal Rd5f4]} 56. Bd2 Nb6 $11) 56. g5 {[%emt 0:00:06]} fxg5 {[%emt 0:00:13]} 57. Bxg5 {[%emt 0:00:00]} Ke4 {[%emt 0:00:07]} 58. Bxe3 {[%emt 0:00:02]} Kxe3 {[%emt 0:00:00]} 59. Nxb3 {[%emt 0:00:01]} Bxb3 {[%emt 0:00:00]} 60. Kh4 {[%emt 0:00:00]} Kd3 {[%emt 0:00:00]} 61. Kg5 {[%emt 0:00:01]} Kc2 {[%emt 0:00:00]} 62. Kh4 {[%emt 0:00:00]} Kxb2 {[%emt 0:00:00] A balanced but interesting game.  Weighted Error Value: White=0.03 (flawless) /Black=0.04 (flawless)} 1/2-1/2

[Event "MCCT Oslo Esports Cup 2022"]
[Site "Oslo"]
[Date "2022.04.20"]
[Round "7.6"]
[White "Le, Quang Liem"]
[Black "Van Foreest, Jorden"]
[Result "1-0"]
[ECO "D16"]
[WhiteElo "2709"]
[BlackElo "2714"]
[Annotator "TA"]
[PlyCount "49"]
[EventDate "2022.04.14"]
[EventType "tourn"]
[EventCountry "NOR"]
[SourceTitle "playchess.com"]
[Source "ChessBase"]
[SourceQuality "1"]
[TimeControl "300+3"]

{[%evp 12,49,20,17,18,17,28,5,37,0,0,0,16,0,0,0,0,0,0,0,62,51,51,47,145,130,130,125,120,138,187,194,522,247,590,331,320,174,3161,2120]} 1. d4 {[%emt 0:00:00]} d5 {[%emt 0:00:00]} 2. c4 {[%emt 0:00:02]} c6 {[%emt 0:00:01][%cal Bc7c6,Bc6c5][%mdl 32]} 3. Nf3 {[%emt 0:00:00]} Nf6 {[%emt 0:00:00]} 4. Nc3 {[%emt 0:00:01]} dxc4 {[%emt 0:00:00]} 5. a4 {[%emt 0:00:01]} e6 {[%emt 0:00:01]} 6. e3 {[%emt 0:00:04]} c5 {[%emt 0:00:00]} 7. Bxc4 {[%emt 0:00:01]} Nc6 {[%emt 0:00:00] 7...cxd4 injects fresh life into this line. D16: Slav Defence: 5 a4: Lines with 5...Bg4 and 5...Na6.} 8. O-O {[%emt 0:00:01]} Be7 {[%emt 0:00:01] [#]} 9. Qc2 $146 {[%emt 0:00:04]} ({Predecessor:} 9. Qe2 O-O 10. Rd1 Qc7 11. Bd2 Rd8 12. Nb5 Qb8 13. dxc5 Bxc5 14. Rac1 Bd7 15. Bxe6 Bxe6 16. Rxc5 {½-½ (31) Nguyen,T (2588)-Esipenko,A (2716) Krasnaya Polyana 2021}) 9... O-O {[%emt 0:00:03] The position is equal.} 10. Rd1 {[%emt 0:00:03]} Bd7 {[%emt 0:00:13]} 11. dxc5 {[%emt 0:00:13]} Bxc5 {[%emt 0:00:03]} 12. b3 {[%emt 0:00:02]} Qe7 {[%emt 0:00:21]} 13. Bb2 {[%emt 0:00:02]} Rfd8 {[%emt 0:00:04]} 14. Ne4 {[%emt 0:00:07]} Nxe4 {[%emt 0:00:03]} 15. Qxe4 {[%emt 0:00:00]} Be8 {[%emt 0:00:18]} ({Better is} 15... Na5 $11) 16. Qg4 {[%emt 0:00:06][%csl Gb2][%cal Rg4g7]} g6 {[%emt 0:00:23]} 17. Ng5 {[%emt 0:00:34][%cal Og5h7]} h5 {[%emt 0:00:03]} ({Black should play} 17... Rxd1+ $14 18. Rxd1 Bd6) 18. Qg3 $1 $40 {[%emt 0:00:18][%mdl 128] Ne4 is the strong threat. White goes for the king. White is much more active.} Rxd1+ {[%emt 0:00:35]} 19. Rxd1 {[%emt 0:00:00] Hoping for Ne4.} Rd8 {[%emt 0:00:01]} 20. Rf1 {[%emt 0:00:06] And now Ne4 would win.} Bd6 {[%emt 0:01:00]} (20... Ba3 $16 21. Ba1 Qf8) 21. f4 $18 {[%emt 0:00:03] Strongly threatening Ne4.} Ba3 $2 {[%emt 0:00:07]} (21... Qf8 {is a better chance.} 22. Ne4 Qh6 23. Nxd6 Rxd6) 22. Ba1 {[%emt 0:00:02]} (22. Bxa3 $142 Qxa3 23. f5) 22... Nb8 $2 {[%emt 0:01:27]} (22... Na5 $2 23. Ne4 Bc6 24. f5 $1 (24. Bf6 Nxc4 25. Bxe7 Bxe7 $16) 24... Bxe4 25. Qe5) (22... Rd2 23. Ne4 Rb2 24. Bxb2 Bxb2) 23. f5 {[%emt 0:00:32]} Bd6 {[%emt 0:00:10]} 24. fxe6 {[%emt 0:00:11]} ({Not} 24. f6 Qc7 25. Qh4 Nc6 $16) (24. Qf2 $142 exf5 {[#]} 25. Qb2 $1 Qxe3+ 26. Kh1) 24... f6 $2 {[%emt 0:01:01] [#]} (24... Bxg3 25. exf7+ Bxf7 26. Bxf7+ Qxf7 27. Nxf7 Bf2+ 28. Kxf2 Rf8) 25. Bxf6 $1 {[%emt 0:00:07][%mdl 512] Weighted Error Value: White=0.52/Black=0.57} 1-0